Cogmind - Beta 9.2 @@@ ROGUE MODE // 2019.11.16 @ 11:35:06 Player: Alexbot Result: Destroyed by G-34 Mercenary with Small Laser Performance ------------- Evolutions (0) 0 Regions Visited (1) 200 Robots Destroyed (8) 40 Value Destroyed (262) 262 Prototype IDs (0) 0 Alien Tech Used (0) 0 Bonus (0) 0 TOTAL SCORE: 502 Bonus ------- None Cogmind --------- Core Integrity 0/250 Matter 242/300 Energy 100/100 System Corruption 0% Temperature Cool (6) Movement Core (50) Location -10/Materials Parts ------- > --- POWER (1) -------- (None) > --- PROPULSION (2) --- Wheel > --- UTILITY (2) ------ (None) > --- WEAPON (2) ------- (None) > --- INVENTORY (4) ---- Signal Interpreter Hacking Suite Peak State ------------ > --- POWER ------------ Light Ion Engine > --- PROPULSION ------- Wheel Compact Wheel > --- UTILITY ---------- (None) > --- WEAPON ----------- Assault Rifle > --- INVENTORY -------- Light Ion Engine [Rating: 4] Favorites ----------- Power Light Ion Engine Engine Light Ion Engine Propulsion Light Treads Treads Light Treads Wheel Wheel Utility None Weapon Assault Rifle Energy Gun Small Laser Ballistic Gun Assault Rifle Build | -11 -10 ------- Run | Scr Mat Slots Evolved . | . . Power . | . . Propulsion . | . . Utility . | . . Weapon . | . . Parts Attached 9 | 4 5 Power 2 | 1 1 Engine 2 | 1 1 Core . | . . Reactor . | . . Propulsion 4 | 2 2 Treads 1 | . 1 Leg . | . . Wheel 3 | 2 1 Hover . | . . Flight . | . . Utility . | . . Device . | . . Storage . | . . Processor . | . . Hackware . | . . Protection . | . . Artifact . | . . Weapon 3 | 1 2 Energy Gun 2 | . 2 Energy Cannon . | . . Ballistic Gun 1 | 1 . Ballistic Cannon . | . . Launcher . | . . Special Weapon . | . . Impact Weapon . | . . Slashing Weapon . | . . Piercing Weapon . | . . Special Melee Weapon . | . . Unidentified Prototypes . | . . Parts Lost 8 | . 8 Power 2 | . 2 Propulsion 3 | . 3 Utility . | . . Weapon 3 | . 3 Highest Loss Streak 5 | . 5 Average Slot Usage (%) 48 | . 48 Engine 10 | . 10 Treads 7 | . 7 Wheel 11 | . 11 Energy Gun 6 | . 6 Ballistic Gun 12 | . 12 Naked Turns . | . . Heaviest Build 6 | 5 6 Greatest Support 26 | 26 26 Greatest Overweight (x) . | . . Average Overweight (x) . | . . Largest Inventory Capacity 4 | 4 4 Average Capacity 4 | 4 4 Most Carried 4 | 4 4 Average Carried 2 | 2 3 Final Capacity 4 | 4 4 Final Carried 4 | 4 2 Class Distribution -------------------- 100% | Mutant Dominant Class ---------------- Mutant | -10/Materials Resources | -11 -10 ----------- Run | Scr Mat Matter Collected 345 | 240 105 Remotely . | . . Salvage Created 261 | . 261 Parts 21 | . 21 Haulers Intercepted . | . . Recyclers Shooed . | . . Parts Field Recycled . | . . Retrieved Matter . | . . Parts Self-Destructed . | . . Prevented . | . . Kills | -11 -10 ------- Run | Scr Mat Combat Hostiles Destroyed 6 | . 6 Guns 6 | . 6 Classes Destroyed 3 | . 3 Operator 1 | . 1 Watcher 1 | . 1 Grunt 6 | . 6 Best Kill Streak 2 | . 2 Combat Bots Only 2 | . 2 Max Kills in Single Turn 1 | . 1 Gunslinging . | . . Exploded . | . . Melee . | . . Uniques/NPCs Destroyed . | . . Combat | -11 -10 -------- Run | Scr Mat Damage Taken 769 | . 769 Core 253 | . 253 Absorbed by Shields . | . . Core Remaining (%) 100 | 100 . Volleys Fired 57 | . 57 Largest 2 | . 2 Hottest 60 | . 60 Shots Fired 78 | . 78 Gun 78 | . 78 Cannon . | . . Launcher . | . . Special . | . . Kinetic 51 | . 51 Thermal 27 | . 27 Explosive . | . . Electromagnetic . | . . Robot Hit Streak 11 | . 11 Robot Miss Streak 9 | . 9 Penetration Max . | . . Secondary Targets 1 | . 1 Max Gunslinging Chain 1 | . 1 Shots Hit Robots 47 | . 47 Core Hits 18 | . 18 Critical Hits 2 | . 2 Critical Kills . | . . Critical Parts Destroyed 2 | . 2 Melee Attacks . | . . Impact . | . . Slashing . | . . Piercing . | . . Sneak Attacks . | . . Combat Hostiles . | . . Follow-up Attacks . | . . Damage Inflicted 607 | . 607 Guns 607 | . 607 Cannons . | . . Explosions . | . . Melee . | . . Ramming . | . . Kinetic 424 | . 424 Thermal 183 | . 183 Explosive . | . . Electromagnetic . | . . Impact . | . . Slashing . | . . Piercing . | . . Highest Corruption . | . . Average Corruption . | . . Corruption Purged . | . . Overload Shots . | . . Overflow Damage . | . . Projectiles . | . . Explosions . | . . Melee . | . . Knockbacks . | . . Impact . | . . Kinetic . | . . Secondary . | . . Self-Inflicted Damage . | . . Shots . | . . Rammed . | . . Targets Rammed . | . . Kicked . | . . Crushed . | . . Highest Temperature 112 | . 112 Average Temperature 50 | . 50 Received Heat Transfer 432 | . 432 Siege Activations . | . . Robots Corrupted . | . . Combat Hostiles . | . . Parts Fried . | . . Impact Corruptions . | . . Robots Melted . | . . Combat Hostiles . | . . Parts Melted . | . . Heat Transferred 425 | . 425 Parts Sabotaged . | . . Parts Stolen . | . . Parts Stripped . | . . Power Chain Reactions . | . . Missiles Intercepted . | . . Alert | -11 -10 ------- Run | Scr Mat Peak Influence 142 | . 142 Average Influence 59 | . 68 Maximum Alert Level . | . . Low Security (%) 100 | 100 100 Level 1 . | . . Level 2 . | . . Level 3 . | . . Level 4 . | . . Level 5 . | . . High Security . | . . Max Security . | . . Squads Dispatched 3 | . 3 Investigation . | . . Extermination . | . . Reinforcement 3 | . 3 Assault . | . . Garrison . | . . Intercept . | . . Construction Impeded . | . . Haulers Reinforced . | . . Stealth | -11 -10 --------- Run | Scr Mat Distress Signals 1 | . 1 Communications Jammed . | . . Distress Signals . | . . Times Spotted 23 | . 23 Peak Tracking Total 6 | . 6 Tactical Retreats 1 | . 1 Traps | -11 -10 ------- Run | Scr Mat Traps Triggered . | . . Indirectly . | . . Trap Hack Attempts . | . . Triggered . | . . Disarmed . | . . Reprogrammed . | . . Reused . | . . Traps Extracted . | . . Installed . | . . Triggered . | . . Machines | -11 -10 ---------- Run | Scr Mat Machines Disabled . | . . Max in Single Turn . | . . Machines Sabotaged . | . . Garrisons Compromised . | . . Overloaded Fab Kills . | . . Fab Network Shutdowns . | . . Hacking | -11 -10 --------- Run | Scr Mat Machines Accessed . | . . Terminals . | . . Fabricators . | . . Repair Stations . | . . Recycling Units . | . . Scanalyzers . | . . Garrison Access . | . . Total Hacks . | . . Successful . | . . Failed . | . . Catastrophic . | . . Database Lockouts . | . . Manual . | . . Terminals . | . . Fabricators . | . . Repair Stations . | . . Recycling Units . | . . Scanalyzers . | . . Garrison Access . | . . Terminal Hacks . | . . Fabricator Hacks . | . . Repair Station Hacks . | . . Recycling Unit Hacks . | . . Scanalyzer . | . . Garrison Access Hacks . | . . Unauthorized Hacks . | . . Terminals . | . . Fabricators . | . . Repair Stations . | . . Recycling Units . | . . Scanalyzers . | . . Garrison Access . | . . Data Cores Recovered . | . . Used . | . . Hacking Detections . | . . Full Trace Events . | . . Feedback Events . | . . Feedback Blocked . | . . Robot Schematics Acquired . | . . Robots Built . | . . Matter . | . . Time . | . . Total Robot Build Rating . | . . Part Schematics Acquired . | . . Parts Built . | . . Matter . | . . Time . | . . Total Part Build Rating . | . . Parts Repaired . | . . Time . | . . Parts Recycled . | . . Recycled Matter . | . . Retrieved Matter . | . . Retrieved Components . | . . Parts Scanalyzed . | . . Part Schematics Acquired . | . . Parts Damaged . | . . Bothacking | -11 -10 ------------ Run | Scr Mat Used RIF Installer . | . . Robots Hacked . | . . Non-combat . | . . Combat . | . . Robot Hacks Applied . | . . Relay Couplers Released . | . . Robots Rewired . | . . Allies Hacked . | . . Hacks Repelled . | . . Allies | -11 -10 -------- Run | Scr Mat Total Allies . | . . Largest Group . | . . Highest-Rated Group . | . . Highest-Rated Ally . | . . Total Orders . | . . Ally Attacks . | . . Total Damage . | . . Kills . | . . Allies Corrupted . | . . Allies Melted . | . . Intel | -11 -10 ------- Run | Scr Mat Robot Analysis Total . | . . Derelict Logs Recovered . | . . Drone Launches . | . . Drone Recoveries . | . . Exploration | -11 -10 ------------- Run | Scr Mat Turns Passed 360 | 47 313 Spaces Moved 188 | 42 146 Core 1 | 1 . Treads 56 | . 56 Legs . | . . Wheels 131 | 41 90 Hover . | . . Flight . | . . Fastest Speed 50 | 50 90 Average Speed 110 | 89 116 Slowest Speed 160 | 100 160 Overloaded Moves . | . . Propulsion Burnouts . | . . Robots Hopped . | . . Cave-ins Triggered . | . . Exploration Rate (%) 17 | 3 31 Regions Visited 1 Branch Regions . Pre-discovered Areas . | . . Known Exits Taken . | . . Unknown Exits Taken 1 | 1 . Scrap Searched . | . . Spaces Dug . | . . Terrain Destroyed . | . . Melee . | . . Projectile . | . . AOE . | . . Actions | -11 -10 --------- Run | Scr Mat Total 259 | 49 210 Wait . | . . Move 187 | 41 146 Hop . | . . Pick Up 6 | 4 2 Fast Attach 5 | 4 1 Attach 4 | . 4 Detach . | . . Swap . | . . Drop . | . . Fire 57 | . 57 Melee . | . . Ram . | . . Kick . | . . Crush . | . . Escape Stasis . | . . Rewire . | . . Trap . | . . Miscellaneous . | . . Route ------- -11/Scrapyard -10/Materials History --------- Turn | Location | Event 13 | -11/Scrapyard | Discovered new exit (range 15) 48 | -11/Scrapyard | Entered Materials 209 | -10/Materials | Lost 3 parts (1p2n) 277 | -10/Materials | Core integrity fell below 50% 316 | -10/Materials | Build established: Mutant 334 | -10/Materials | Core integrity fell below 20% 361 | -10/Materials | Destroyed by G-34 Mercenary with Small Laser Last Messages --------------- 00303_ O-16 Technician: "IFF HANDSHAKE FAILED. SECURING TERMINAL." 00303_ R-06 Scavenger collects Ion Engine. 00305_ K-01 Serf collects debris. 00308_ U-05 Engineer lays Concrete. 00308_ ALERT: Hostiles spotted, dispatching reinforcements to Terminal M007. 00309_ K-01 Serf collects debris. 00315_ Sml. Laser destroyed. 00318_ U-05 Engineer builds a Door. 00319_ G-34 Mercenary suffers critical hit. 00319_ Destroyed Ion Engine. 00319_ K-01 Serf collects debris. 00323_ Assault Rifle destroyed. 00326_ G-34 Mercenary destroyed. 00327_ K-01 Serf collects debris. 00335_ Sml. Laser destroyed. 00337_ K-01 Serf collects debris. 00350_ Acquired Wheel. 00357_ U-05 Engineer builds a Door. 00361_ Lgt. Treads destroyed. Map ----- +----------------------------------------------------+ | ???????# T ""????????????????????????????????? | | ???????# " ?????????????????????????????????? | | ???????# ??????????????????????????????????? | | ???????# ???????????????????????????????????? | | ???????# #???????????????????????????????????? | | ???????# #???????????????????????????????????? | | ???????# #???????????????????????????????????? | | ???????#!= #???????????????????????????????????? | | ???????#% #???????????????????????????????????? | | ???????# #????????? #??????????????????????? | | #####??# #????????? #??????????????????????? | | ?# #????????# #??????????????????????? | | !! ?# #????????# #??????????????????????? | | ! # ########## #??????????????????????? | | "" # r a ##?????????????????????? | | "" + T#?????????????????????? | | T" # % %* =% ##?##??????????????????? | | "" ### ## = #? ??????????????????? | | ""???# ## #? "???????????????????? | | ???#=## # ????????????????????? | | #####????# ## !% # ?????????????????????? | | ?????????# ## + ??????????????????? | | ?????????# ## ####### ######?????????????????? | | ?????????# ## # # s#??????????????????????? | | ?????????# ## + # s #??????????????????????? | | ?????????# ## # #u @# #???????????? | | ?????????# ## # + + #???????????? | | ########## ## # # # #???????????? | | ## # #o g#??????????????????????? | | ##########+## # # g #??????????????????????? | | #####??? # # # #??????????????????????? | | # ?# # # # #??????????????????????? | | # T ## # # # #??????????????????????? | | + ## # # # #??????????????????????? | | # ## # # # #??????????????????????? | | # ## # ####### +??????????????????????? | | # ######## ??????# #??????????????????????? | | # #?? ### ??????# #??????????????????????? | | + #? " #?? ??????T #??????????????????????? | | #? #?""" #?????????# ??????????????????????? | | ####+# """ #?????????? ???????????????????????? | | # """ #????????????????????????????????????? | | + "" #????????????????????????????????????? | | # """ #????????????????????????????????????? | | ###### "" #????????????????????????????????????? | | #??????"" #????????????????????????????????????? | | #?????? " #????????????????????????????????????? | | ???????? #????????????????????????????????????? | | ???????? #????????????????????????????????????? | | ????????? #????????????????????????????????????? | +----------------------------------------------------+ Best States ------------- Heat Dissipation 25 Energy Generation 10 Energy Capacity 125 Matter Stores 300 Matter Capacity 300 Sight Range 16 Terrain Scan Density 10 Evasion (%) 42 Recoil Reduction 1 Item Schematics ----------------- None Robot Schematics ------------------ None Fabricated ------------ Nothing Alien Tech Used ----------------- None Achievements -------------- None Challenges ------------ Sticky Parts Game ------ Seed ShadeScanCycler Manual? 0 Play Time 00:04:32 Cumulative 708.5 hours Start 2019.11.16 @ 11:32:30 End 2019.11.16 @ 11:35:06 Sessions 1 Manual Loads 0 Difficulty Rogue Special Mode None Game No. 195 Rogue 195 Adventurer 0 Explorer 0 Win Type - Total 34 Types 25/0/2/3/2/1/1 Lore% 96 Gallery% 97 Achievement% 91 Wizard Run 0 Options --------- ASCII 0 Keyboard 1 Movement Numpad Keybinds 0 Fullscreen 1 Font 18/SmallcapsGlow Map View 76x50 Tactical HUD 1 Map Filters NONE Filters NONE Steam 1 RUN: 840ae72a-1bfc-44f0-a72b-943bb2da9900